bitfinex/quotes_ETHUSD_20241116
["timestamp","ask_amount","ask_price","bid_price","bid_amount"]
[1731770938469,3.17702,3147.6,3147.0,3.17761]
[1731770938736,3.17695,3147.7,3147.0,3.17755]
[1731770938947,3.17686,3147.8,3147.0,3.17757]
[1731770939150,3.17708,3147.6,3146.9,3.17764]
[1731770939353,3.17773,3146.9,3146.2,3.17839]
[1731770939553,3.17753,3147.1,3146.2,3.17839]
[1731770939554,3.17767,3147.0,3146.4,3.1782]
[1731770939859,3.17767,3147.0,3146.2,3.17839]
[1731770940039,3.1776,3147.1,3146.5,3.17812]
[1731770940214,3.17763,3147.0,3146.5,3.17812]
[1731770940879,3.17763,3147.0,3146.3,3.72827]
[1731770941012,3.17763,3147.0,3146.5,0.55]
[1731770941212,3.17781,3146.9,3146.3,3.72826]
[1731770941524,3.17747,3147.2,3146.3,3.72826]
[1731770941724,3.17763,3147.0,3146.4,3.17822]
[1731770941921,3.17763,3147.0,3146.3,3.72826]
[1731770942139,3.17763,3147.0,3146.5,0.55]
[1731770942608,3.17745,3147.2,3146.6,0.55]
[1731770942807,3.06300248,3147.5,3146.6,0.55]
[1731770943046,3.17764,3147.0,3146.6,0.55]
[1731770943256,3.17774,3146.9,3146.6,0.55]
[1731770943411,3.17774,3146.9,3146.4,0.55]
[1731770943611,3.17759,3147.1,3146.4,3.72822]
[1731770943855,3.0,3147.5,3146.4,4.101042]
[1731770944057,3.17742,3147.2,3146.6,0.55]
[1731770944414,3.17755,3147.1,3146.5,0.55]
[1731770944946,3.17776,3146.9,3146.5,0.55]
[1731770945164,0.04551475,3147.0,3146.5,3.72811]
[1731770945527,0.04551475,3147.0,3146.6,3.17801]
[1731770945847,0.04551475,3147.0,3146.9,3.72773]
[1731770946144,0.04551475,3147.0,3146.7,0.372801]
[1731770946343,0.04551475,3147.0,3146.5,3.72812]
[1731770946562,0.04551475,3147.0,3146.3,3.17823]
[1731770946563,0.04551475,3147.0,3146.4,0.55]
[1731770946764,3.22319475,3147.0,3146.4,0.55]
[1731770947165,3.22319475,3147.0,3146.4,3.72821]
[1731770947367,3.22319475,3147.0,3146.4,0.55]
[1731770947544,3.22319475,3147.0,3146.4,4.101043]
[1731770949469,3.22319475,3147.0,3146.2,3.72837]
[1731770949674,3.22319475,3147.0,3146.2,0.55]
[1731770949675,3.17793,3146.7,3146.2,0.55]
[1731770949843,3.1781,3146.6,3146.0,3.17856]
[1731770950210,3.17815,3146.5,3146.0,3.17856]
[1731770950474,3.17815,3146.5,3145.5,12.0]
[1731770950475,3.17837,3146.3,3145.6,3.17896]
[1731770950772,3.17865,3146.0,3145.5,15.17906]
[1731770950973,3.17854,3146.1,3145.5,15.17906]
[1731770951129,3.06300248,3146.6,3145.5,12.0]
[1731770951333,3.17864,3146.0,3145.5,12.0]
[1731770951528,3.17884,3145.8,3145.5,12.0]
[1731770951871,3.17884,3145.8,3145.5,11.73]
[1731770952071,3.17864,3146.0,3145.5,11.73]
[1731770952233,3.17881,3145.9,3145.5,11.73]
[1731770952633,3.17881,3145.9,3145.5,11.46]
[1731770953366,3.814545,3145.9,3145.5,11.46]
[1731770953567,0.635735,3145.9,3145.5,11.46]
[1731770953781,3.17877,3145.9,3145.5,11.46]
[1731770954171,3.17876,3145.9,3145.5,11.46]
[1731770954565,3.06300248,3145.7,3145.5,11.46]
[1731770954761,3.17904,3145.6,3145.5,11.46]
[1731770954985,4.43902325,3145.6,3145.5,11.46]
[1731770955965,7.44902325,3145.6,3145.5,11.46]
[1731770957100,7.44902325,3145.6,3143.9,3.3249039]
[1731770957101,3.18033,3144.4,3143.9,0.1441639]
[1731770957305,3.18063,3144.1,3143.9,0.1441639]
[1731770957467,3.18037,3144.3,3143.9,0.1441639]
[1731770957790,3.06300248,3145.1,3143.9,0.1441639]
[1731770957992,3.17965,3145.0,3144.0,3.18059]
[1731770958193,3.06300248,3145.1,3144.1,0.33247539]
[1731770958392,3.18006,3144.6,3143.9,0.1441639]
[1731770958605,3.18027,3144.4,3143.9,0.1441639]
[1731770958806,3.18015,3144.5,3143.9,0.1441639]
[1731770959009,3.06300248,3144.8,3143.9,0.1441639]
[1731770959606,3.18007,3144.6,3143.9,0.1441639]
[1731770959908,3.17995,3144.7,3143.9,0.1441639]
[1731770960234,3.06300248,3144.8,3143.9,0.1441639]
[1731770960506,3.18005,3144.6,3143.9,0.1441639]
[1731770960879,6.24286248,3144.8,3143.9,0.1441639]
[1731770961081,3.17996,3144.7,3143.9,0.1441639]
[1731770961281,3.06300248,3144.8,3144.1,3.18056]
[1731770961584,6.24285248,3144.8,3143.9,3.3249039]
[1731770961980,3.0,3144.7,3143.9,3.3249039]
[1731770962189,3.0,3144.4,3143.9,0.1441639]
[1731770962509,6.24317248,3144.5,3143.9,3.3249139]
[1731770962707,6.24317248,3144.5,3144.0,3.18065]
[1731770962708,3.06300248,3144.5,3144.0,3.18065]
[1731770962897,3.06300248,3144.5,3143.9,0.1441639]
[1731770963095,6.17987,3144.8,3144.0,0.55]
[1731770963299,6.24313248,3144.6,3143.9,0.1441639]
[1731770963473,3.18032,3144.4,3143.9,0.1441639]
[1731770963669,6.24313248,3144.6,3143.9,0.1441639]
[1731770963906,3.18017,3144.5,3143.9,0.1441639]
[1731770964209,6.24313248,3144.6,3143.9,0.1441639]
[1731770964210,3.06300248,3144.6,3143.9,0.1441639]
[1731770964413,3.18038,3144.3,3143.9,0.1441639]
[1731770964568,6.24342248,3144.3,3143.9,0.1441639]
[1731770964773,3.18026,3144.4,3143.9,0.1441639]
[1731770965327,3.18049,3144.2,3143.9,0.1441639]
[1731770965539,3.18057,3144.1,3143.9,0.1441639]
[1731770965695,3.18043,3144.3,3143.9,0.1441639]
[1731770965891,6.24366248,3144.0,3143.9,0.1441639]
[1731770966093,9.24366248,3144.0,3143.9,0.1441639]
[1731770966325,9.26366248,3144.0,3143.9,0.1441639]
[1731770966933,9.25366248,3144.0,3143.9,0.1441639]
[1731770967132,9.24366248,3144.0,3143.9,0.1441639]
[1731770967318,9.26366248,3144.0,3143.9,0.1441639]
[1731770969136,9.26366248,3144.0,3141.9,3.18278]
[1731770969137,3.18178,3142.9,3141.9,3.18269]
[1731770969342,3.1817,3143.0,3142.0,3.500949]
[1731770969553,3.1817,3143.0,3142.0,0.318269]
[1731770969554,3.18186,3142.9,3142.0,0.318269]
[1731770969834,3.18178,3142.9,3142.2,3.18247]
[1731770970038,3.18188,3142.8,3142.0,0.318269]
[1731770970254,3.18188,3142.8,3141.6,3.18303]
[1731770970255,3.06300248,3142.8,3141.6,3.18303]
[1731770970431,3.18224,3142.5,3141.7,3.18292]
[1731770970614,3.18228,3142.4,3141.7,3.18292]
[1731770970933,3.07300248,3143.3,3141.2,0.07366058]
[1731770971156,3.07300248,3143.3,3141.9,3.18269]
[1731770971157,3.18215,3142.6,3141.9,3.18269]
[1731770971296,3.182,3142.7,3142.0,3.18261]
[1731770971500,3.18198,3142.7,3142.0,3.18261]
[1731770972221,3.18218,3142.5,3141.9,0.55]
[1731770972405,3.18218,3142.5,3141.8,3.18288]
[1731770972406,3.18228,3142.4,3141.8,3.18288]
[1731770972609,3.18228,3142.4,3141.9,0.55]
[1731770972825,3.18228,3142.4,3141.6,0.55]
[1731770973036,3.18228,3142.4,3141.9,0.55]
[1731770973223,3.18184,3142.9,3141.9,3.73271]
[1731770973556,3.0,3143.2,3141.9,3.73271]
[1731770973557,3.18198,3142.7,3141.9,3.73271]
[1731770973749,3.18198,3142.7,3142.0,3.18266]
[1731770973924,3.18219,3142.5,3141.9,3.71911376]
[1731770974253,3.1823,3142.4,3141.7,3.18298]
[1731770974456,3.18245,3142.3,3141.5,3.18318]
[1731770974814,3.18245,3142.3,3140.8,0.01]
[1731770974815,3.18309,3141.6,3140.6,4.29109843]
[1731770975012,3.18322,3141.5,3140.8,3.18382]
[1731770975453,3.18322,3141.5,3140.7,3.3280639]
[1731770975761,3.183,3141.7,3140.8,3.18385]
[1731770975941,3.183,3141.7,3140.7,0.1441639]
[1731770976255,3.18337,3141.4,3140.7,3.3280639]
[1731770976454,3.0,3140.9,3140.7,0.1441639]
[1731770976655,3.0,3141.2,3140.7,0.1441639]
[1731770976812,3.0,3141.0,3140.7,0.1441639]
[1731770977012,3.18357,3141.2,3140.7,0.1441639]
[1731770977240,3.62462817,3141.6,3140.7,0.1441639]
[1731770977471,3.18355,3141.2,3140.7,0.1441639]
[1731770977773,3.18363,3141.1,3140.7,0.1441639]
[1731770978216,3.18373,3141.0,3140.7,0.1441639]
[1731770978412,3.18388,3140.9,3140.7,0.1441639]
[1731770978656,3.18373,3141.0,3140.7,0.1441639]
[1731770978826,3.0,3142.0,3140.8,0.55]
[1731770979031,3.18333,3141.4,3140.8,0.55]
[1731770979222,3.18352,3141.2,3140.8,0.55]
[1731770979870,3.18268,3142.0,3140.7,0.1441639]
[1731770980157,6.24436248,3143.4,3141.6,3.18309]
[1731770980373,3.1821,3142.6,3141.9,0.55]
[1731770980543,3.1821,3142.6,3141.3,3.18331]
[1731770980544,3.18259,3142.1,3141.3,3.18331]
[1731770980749,3.1824,3142.3,3141.4,3.73327]
[1731770981077,3.18209,3142.6,3141.6,3.73307]
[1731770981244,3.18184,3142.9,3142.1,3.18257]
[1731770981575,3.18167,3143.0,3142.2,3.73246]
[1731770981734,3.18167,3143.0,3142.3,3.18238]
[1731770981934,0.6298456,3143.8,3142.3,0.318238]
[1731770982147,3.18147,3143.2,3142.3,3.500588]
[1731770982346,3.06300248,3143.7,3142.3,3.18235]
[1731770982557,3.18157,3143.2,3142.3,3.18235]
[1731770982874,3.18157,3143.2,3141.8,3.07300248]
[1731770982875,3.18157,3143.2,3142.4,3.18223]
[1731770983093,3.18157,3143.2,3142.5,0.318223]
[1731770983234,3.18127,3143.4,3142.5,3.18214]
[1731770983434,3.8107056,3143.8,3142.3,0.01]
[1731770983653,3.18055,3144.2,3143.1,0.55]
[1731770983836,3.18026,3144.4,3143.3,0.55]
[1731770984035,3.18043,3144.3,3143.8,0.55]
[1731770984277,3.18013,3144.6,3143.9,3.18075]
[1731770984477,3.18018,3144.5,3143.8,0.55]
[1731770984663,0.01,3145.5,3143.9,3.18076]
[1731770984664,3.17995,3144.7,3143.9,3.18076]
[1731770984842,3.17977,3144.9,3144.1,0.01]
[1731770985172,3.17947,3145.2,3144.1,0.01]
[1731770985173,3.17973,3145.0,3144.2,3.18045]
[1731770985400,3.73065813,3145.5,3144.3,0.55]
[1731770985574,3.17958,3145.1,3144.3,0.55]
[1731770985898,3.17936,3145.3,3144.3,0.61360554]
[1731770986097,3.73065813,3146.0,3144.0,0.01]
[1731770986098,3.17975,3144.9,3144.2,3.18044]
[1731770986298,3.17975,3144.9,3144.2,0.55]
[1731770986299,3.17983,3144.9,3144.2,0.55]
[1731770986506,3.17983,3144.9,3144.1,3.18054]
[1731770986658,3.17983,3144.9,3144.2,3.18044]
[1731770986860,1.0517412,3146.1,3144.2,3.18044]
[1731770986861,3.73065813,3146.0,3144.5,0.55]
[1731770987067,3.17941,3145.3,3144.5,0.55]
[1731770987360,3.17941,3145.3,3143.9,0.01]
[1731770987361,3.73065813,3145.1,3143.7,3.18087]
[1731770987569,3.18018,3144.5,3143.7,3.18087]
[1731770987790,3.18018,3144.5,3143.2,0.43700575]
[1731770987791,3.18055,3144.2,3143.4,3.18125]
[1731770988002,3.18058,3144.1,3143.2,3.18141]
[1731770988323,4.13524302,3145.1,3143.2,0.637298]
[1731770988612,3.18113,3143.6,3142.7,3.18197]
[1731770988812,3.18086,3143.8,3142.7,3.17541887]
[1731770989125,3.18096,3143.8,3143.0,3.18159]
[1731770989270,3.0,3144.6,3142.4,3.74065813]
[1731770989482,3.18113,3143.6,3142.6,0.01]
[1731770989672,3.18113,3143.6,3142.8,3.18185]
[1731770990025,3.18062,3144.1,3142.8,0.636392]
[1731770990321,3.18135,3143.4,3142.8,0.636392]
[1731770990617,3.18135,3143.4,3142.3,0.01]
[1731770990618,3.18147,3143.2,3142.4,3.18226]
[1731770990917,3.18169,3143.0,3142.2,3.18243]
[1731770991121,3.18179,3142.9,3142.3,0.6365]
[1731770991285,3.18179,3142.9,3142.2,3.18247]
[1731770991920,3.18217,3142.6,3141.8,3.18287]
[1731770992214,3.18178,3142.9,3141.9,3.18277]
[1731770992442,3.1821,3142.6,3141.9,3.819345]
[1731770992584,3.18246,3142.3,3141.5,3.556437]
[1731770992914,3.18246,3142.3,3141.5,3.566427]
[1731770992915,3.18247,3142.3,3141.5,3.566427]
[1731770993218,3.18173,3143.0,3141.5,0.373327]
[1731770993392,3.18249,3142.2,3141.5,3.566517]
[1731770993592,3.18225,3142.5,3141.6,0.3566517]
[1731770993835,3.18126,3143.4,3141.7,3.24664358]
[1731770993975,3.18169,3143.0,3142.2,3.18247]
[1731770994174,3.18187,3142.8,3142.0,3.24630628]
[1731770994390,3.18187,3142.8,3142.1,3.50819063]
[1731770994679,3.18169,3143.0,3142.1,3.50819063]
[1731770994680,3.18167,3143.0,3142.2,3.73244]
[1731770994877,3.18147,3143.2,3142.2,0.55]
[1731770995211,3.18147,3143.2,3142.4,3.18225]
[1731770995376,3.18157,3143.1,3142.4,3.18225]
[1731770995822,3.18173,3143.0,3142.3,3.18228]
[1731770996130,3.18173,3143.0,3142.2,0.55]
[1731770996131,3.18132,3143.4,3142.4,3.18227]
[1731770996280,3.0,3143.3,3141.3,0.01]
[1731770996628,3.18247,3142.3,3141.6,3.18301]
[1731770996827,3.18247,3142.3,3141.6,0.636628]
[1731770996978,3.18199,3142.7,3141.7,3.18297]
[1731770997174,3.0,3143.3,3141.2,0.01]
[1731770997175,3.18246,3142.3,3141.5,3.18318]
[1731770997378,3.18258,3142.1,3141.4,3.18327]
[1731770997624,3.18258,3142.1,3141.5,0.55]
[1731770997991,3.18309,3141.6,3140.9,3.18371]
[1731770998194,3.18328,3141.5,3140.7,0.1441639]
[1731770998409,3.18288,3141.9,3141.1,3.18352]
[1731770998922,3.18297,3141.8,3141.1,3.18352]
[1731770999233,3.73065813,3142.6,3140.7,3.3281039]
[1731770999446,3.18318,3141.6,3140.8,0.3797672]
[1731770999594,3.18337,3141.4,3140.9,0.04772947]
[1731770999791,3.18342,3141.3,3140.9,0.04772947]
[1731771000100,3.18228,3142.4,3141.2,3.18342]
[1731771000443,3.74065813,3143.0,3141.3,3.501722]
[1731771000444,3.73065813,3143.0,3141.3,3.501722]
[1731771000596,3.18296,3141.8,3141.1,3.18358]
[1731771000933,3.18296,3141.8,3140.9,3.23150947]
[1731771001100,3.18206,3142.7,3140.9,3.23150947]
[1731771001290,3.18287,3141.9,3141.2,6.18348]
[1731771001493,3.18273,3142.0,3141.3,3.18332]
[1731771001732,3.18267,3142.1,3141.4,3.0]
[1731771002032,3.18268,3142.0,3141.4,3.0]
[1731771002233,3.18256,3142.2,3141.5,3.618329]
[1731771002534,3.18258,3142.1,3141.5,3.801469]
[1731771002749,3.18258,3142.1,3141.6,3.0]
[1731771003297,3.18239,3142.3,3141.5,3.0]
[1731771003536,3.18221,3142.5,3141.6,3.18301]
[1731771003796,3.18256,3142.2,3141.5,3.0]
[1731771004020,3.73065813,3142.7,3141.1,3.18356]
[1731771004241,3.18295,3141.8,3141.2,3.0]
[1731771004412,3.18299,3141.7,3141.1,3.64149595]
[1731771004622,3.18287,3141.9,3141.1,3.18359]
[1731771004828,3.18316,3141.6,3140.9,3.23149947]
[1731771005028,3.1835,3141.2,3140.9,0.04772947]
[1731771005748,3.1832,3141.5,3140.9,0.04772947]
[1731771005918,3.18369,3141.1,3140.9,0.04772947]
[1731771006320,3.18369,3141.0,3140.9,0.04772947]
[1731771006817,0.01,3142.1,3140.9,0.04772947]
[1731771006818,3.18276,3142.0,3141.3,3.18332]
[1731771007018,3.1823,3142.4,3141.7,3.18298]
[1731771007238,3.18225,3142.5,3141.7,3.18292]
[1731771007407,3.73065813,3143.1,3141.7,3.18292]
[1731771007408,3.18208,3142.6,3141.7,3.18292]
[1731771007607,3.18202,3142.7,3141.8,3.06365486]
[1731771007856,3.51211773,3143.9,3142.1,3.0]
[1731771007857,3.18169,3143.0,3142.1,3.0]
[1731771008017,3.18164,3143.1,3142.3,3.18235]
[1731771008220,3.18111,3143.6,3142.3,3.18231]
[1731771008221,3.18106,3143.6,3142.3,3.18231]
[1731771008437,3.18157,3143.1,3142.4,3.1822]
[1731771008637,3.18186,3142.9,3142.2,3.0]
[1731771008816,3.18106,3143.6,3141.8,3.30636549]
[1731771008817,3.18205,3142.7,3141.8,3.30636549]
[1731771009010,3.73065813,3143.5,3141.8,3.30636549]
[1731771009011,3.18195,3142.8,3141.9,0.33063655]
[1731771009208,3.1817,3143.0,3142.2,3.1824]
[1731771009537,3.18189,3142.8,3142.0,6.18261]
[1731771009857,3.18189,3142.8,3142.1,3.18257]
[1731771010010,3.18169,3143.0,3142.1,3.18257]
[1731771010216,3.18148,3143.2,3142.5,3.1821]
[1731771010639,3.1816,3143.1,3142.5,3.1821]
[1731771010762,3.1813,3143.4,3142.7,3.18195]
[1731771010963,3.1813,3143.4,3142.7,3.18193]
[1731771011406,3.18149,3143.2,3142.6,3.18206]
[1731771011602,3.73065813,3143.9,3142.1,3.96822066]
[1731771011902,3.18194,3142.8,3142.4,3.0]
[1731771012113,3.1816,3143.1,3142.4,3.0]
[1731771012266,3.1816,3143.1,3141.8,3.18288]
[1731771012267,0.55,3143.0,3142.2,6.18247]
[1731771012469,3.18187,3142.9,3142.2,6.18247]
[1731771012665,0.55,3143.0,3142.4,3.0]
[1731771012874,0.63114646,3144.4,3142.7,3.18195]
[1731771012875,0.55,3143.6,3142.7,3.18195]
[1731771013082,0.55,3143.3,3142.7,3.18196]
[1731771013297,3.18127,3143.4,3142.5,3.2457877]
[1731771013509,3.18091,3143.8,3143.0,3.18159]
[1731771013667,3.18101,3143.7,3143.1,3.18156]
[1731771013864,3.18078,3143.9,3143.1,3.18156]
[1731771014070,3.18057,3144.1,3143.4,3.18119]
[1731771014270,3.18076,3143.9,3143.2,6.18143]
[1731771014472,3.18057,3144.1,3143.2,6.18143]
[1731771014473,3.18057,3144.1,3143.4,3.18126]
[1731771014906,3.18038,3144.3,3142.7,6.73065813]
[1731771015115,3.18018,3144.5,3143.0,3.0]
[1731771015322,0.33122458,3145.4,3143.0,3.0]
[1731771015323,3.73065813,3145.5,3143.9,3.0]
[1731771015473,3.1797,3145.0,3143.9,3.18073]
[1731771015794,3.17983,3144.9,3144.0,3.18057]
[1731771015995,3.17995,3144.7,3144.1,3.18055]
[1731771016183,3.17971,3145.0,3144.3,3.18031]
[1731771016510,3.17977,3144.9,3144.3,3.18031]
[1731771017400,3.17994,3144.8,3143.9,3.18066]
[1731771017566,0.55,3144.7,3144.0,3.18064]
[1731771017771,0.55,3144.6,3144.1,0.63613]
[1731771018025,0.55,3144.6,3144.1,3.81668]
[1731771018199,3.7301,3144.6,3143.7,3.18086]
[1731771018384,3.7301,3144.6,3143.1,9.91222813]
[1731771018385,3.73046,3144.2,3143.4,3.18126]
[1731771018599,0.55,3144.2,3143.4,0.318126]
[1731771018800,0.55,3143.8,3143.4,0.318126]
[1731771019182,0.55,3143.9,3143.4,0.318126]
[1731771019375,3.73085,3143.9,3143.4,0.318126]
[1731771019720,3.18066,3144.0,3143.3,3.18135]
[1731771019721,0.55,3143.7,3143.3,3.18135]
[1731771019874,3.18066,3144.0,3143.4,3.18123]
[1731771019875,0.55,3144.0,3143.4,3.18123]
[1731771020079,3.18123,3143.5,3142.7,3.1819]
[1731771020385,3.18208,3142.6,3142.0,3.18267]
[1731771020584,0.55,3142.5,3142.1,3.18255]
[1731771020886,0.55,3142.7,3142.1,3.18257]
[1731771021090,3.73187,3142.8,3142.2,0.318257]
[1731771021386,0.01,3143.8,3141.5,0.06364805]
[1731771021387,0.55,3142.5,3141.5,0.06364805]
[1731771021578,0.55,3142.8,3142.2,3.18246]
[1731771021788,3.18122,3143.5,3141.8,3.73065813]
[1731771021789,0.55,3143.1,3142.3,0.318246]
[1731771022134,0.55,3142.9,3142.4,3.18226]
[1731771022491,3.73178,3142.9,3142.2,3.18246]
[1731771022809,0.55,3142.9,3142.2,3.18246]
[1731771023036,0.55,3143.1,3142.3,0.38188608]
[1731771023325,0.55,3143.4,3142.9,3.18176]
[1731771023539,0.55,3143.4,3142.7,3.1819]
[1731771023710,0.55,3143.4,3142.8,3.18178]
[1731771023905,3.18137,3143.3,3142.7,3.1819]
[1731771024219,3.1819,3142.8,3142.1,3.1825]
[1731771024434,0.55,3142.9,3142.2,3.24611414]
[1731771024599,3.73177,3142.9,3142.3,3.18236]
[1731771024799,3.18149,3143.2,3142.5,3.18217]
[1731771024800,0.55,3143.0,3142.5,3.18217]
[1731771025006,0.55,3143.1,3142.5,3.18217]
[1731771025237,3.1811,3143.6,3142.6,0.06363641]
[1731771025581,3.18132,3143.4,3142.8,3.18187]
[1731771025735,3.1811,3143.6,3142.9,3.18169]
[1731771026029,3.1811,3143.6,3143.0,3.18166]
[1731771026329,3.18113,3143.6,3142.9,3.18176]
[1731771026546,0.55,3143.6,3143.0,3.18158]
[1731771026837,3.18069,3144.0,3143.1,3.18157]
[1731771027008,3.18069,3144.0,3143.3,3.18136]
[1731771027391,3.17904,3145.6,3143.5,3.18116]
[1731771027733,3.17896,3145.7,3144.5,3.18012]
[1731771027734,3.17963,3145.1,3144.5,3.18012]
[1731771027893,3.17923,3145.5,3144.8,3.17984]
[1731771028089,3.17945,3145.2,3144.6,3.18003]
[1731771028289,3.17942,3145.3,3144.7,3.17994]
[1731771028523,3.73065813,3146.3,3144.2,3.18039]
[1731771028721,3.17911,3145.6,3144.9,3.17973]
[1731771029025,3.17914,3145.5,3144.7,3.17994]
[1731771029188,3.17971,3145.0,3144.3,3.18034]
[1731771029399,3.17902,3145.7,3144.4,3.18023]
[1731771029613,3.17959,3145.1,3144.3,3.18034]
[1731771029818,3.17981,3144.9,3144.3,3.18034]
[1731771030191,3.17959,3145.1,3144.3,3.18034]
[1731771030395,3.17916,3145.5,3144.7,3.17985]
[1731771030714,3.17895,3145.7,3145.0,3.17964]
[1731771030885,3.17888,3145.8,3144.3,4.36674613]
[1731771031091,3.17881,3145.9,3145.2,3.17937]
[1731771031293,3.17881,3145.9,3145.3,3.17927]
[1731771031492,3.17861,3146.1,3145.3,3.17927]
[1731771031802,0.64935724,3146.9,3145.1,3.24310571]
[1731771031803,3.17825,3146.4,3145.4,3.24273297]
[1731771031995,3.17825,3146.4,3145.6,3.17897]
[1731771032195,3.17825,3146.4,3145.7,3.17892]
[1731771032428,1.270704,3147.5,3145.7,3.814726]
[1731771032429,3.17815,3146.5,3145.7,3.814726]
[1731771032632,3.17798,3146.7,3145.9,3.17866]
[1731771032805,3.17798,3146.7,3145.2,0.01]
[1731771033180,4.11270147,3147.9,3145.2,0.01]
[1731771033181,3.17783,3146.8,3145.2,0.01]
[1731771033313,3.17783,3146.8,3145.9,3.17872]
[1731771033527,3.1781,3146.6,3145.9,3.17872]
[1731771033832,3.17783,3146.8,3145.9,3.17872]
[1731771034003,0.55,3147.2,3145.5,3.17913]
[1731771034344,0.55,3147.2,3144.6,3.18997]
[1731771034345,3.17863,3146.0,3144.6,3.17997]
[1731771034492,0.55,3144.9,3144.2,3.18045]
[1731771034695,0.55,3144.9,3144.5,3.18006]
[1731771035029,0.55,3145.1,3144.6,3.18004]
[1731771035231,0.55,3145.6,3144.7,0.06359781]
[1731771035390,3.17896,3145.7,3144.7,0.06359781]
[1731771035391,0.55,3146.0,3144.7,0.06359781]
[1731771035593,3.17808,3146.6,3144.7,0.01]
[1731771035923,3.17786,3146.8,3145.9,3.17873]
[1731771036212,3.17806,3146.6,3145.9,3.17873]
[1731771036391,3.17765,3147.0,3145.3,0.01]
[1731771036591,3.17775,3146.9,3146.2,3.17834]
[1731771037005,3.17775,3146.9,3146.3,3.17833]
[1731771037425,3.17775,3146.9,3146.1,0.06356413]
[1731771037426,3.17753,3147.1,3146.2,3.17843]
[1731771037633,3.17731,3147.4,3146.4,3.17822]
[1731771037810,3.17753,3147.1,3146.4,3.17822]
[1731771038326,3.17767,3147.0,3146.3,0.06355945]
[1731771038857,3.17783,3146.8,3146.0,3.17859]
[1731771039159,0.55,3146.7,3146.4,3.17821]
[1731771039354,3.1782,3146.5,3145.8,3.17881]
[1731771039508,4.11270147,3147.8,3145.3,0.41327015]
[1731771039509,0.55,3146.4,3145.6,3.17895]
[1731771039704,0.55,3146.2,3145.4,3.17921]
[1731771039910,0.55,3146.2,3146.1,3.17853]
[1731771040132,3.17754,3147.1,3146.4,3.17821]
[1731771040133,0.55,3147.1,3146.4,3.17821]
[1731771040452,0.55,3147.1,3146.4,3.17816]
[1731771040751,3.17724,3147.4,3146.5,3.24168941]
[1731771040964,3.17724,3147.4,3146.8,3.17781]
[1731771041246,3.17726,3147.4,3146.8,3.17781]
[1731771041451,3.17702,3147.7,3146.8,3.17781]
[1731771041664,3.17719,3147.5,3146.8,3.17781]
[1731771041811,3.17719,3147.5,3146.6,3.17802]
[1731771042015,3.17753,3147.1,3146.4,3.496036]
[1731771042242,0.55,3147.4,3146.5,0.06355637]
[1731771042460,0.55,3147.4,3146.8,3.17776]
[1731771042757,0.55,3147.4,3146.7,3.17783]
[1731771042758,0.55,3147.4,3146.9,3.17771]
[1731771043161,3.17685,3147.8,3146.9,3.17771]
[1731771043341,3.17685,3147.8,3147.2,3.17741]
[1731771043869,3.17649,3148.2,3147.5,3.17711]
[1731771044177,3.17613,3148.5,3147.6,3.17702]
[1731771044310,3.17629,3148.4,3147.7,3.0]
[1731771044507,3.17629,3148.4,3147.8,3.1768]
[1731771044743,3.1759,3148.8,3148.0,3.17661]
[1731771044950,3.17602,3148.6,3148.0,3.17661]
[1731771045152,3.1759,3148.8,3148.0,3.17661]
[1731771045455,3.1759,3148.8,3148.2,3.1764]
[1731771046018,3.17515,3149.5,3148.2,3.1764]
[1731771046019,3.17572,3148.9,3148.2,3.1764]
[1731771046364,3.17531,3149.3,3148.3,3.0]
[1731771046511,3.17531,3149.3,3148.6,3.17594]
[1731771046711,9.5232,3150.2,3148.4,3.17618]
[1731771047041,3.18432,3150.3,3148.4,3.17618]
[1731771047042,3.17549,3149.2,3148.4,3.17618]
[1731771047241,3.17549,3149.2,3148.5,3.0]
[1731771047537,3.17549,3149.2,3148.5,6.17605]
[1731771047744,0.55,3149.1,3148.5,6.17605]
[1731771047936,0.55,3149.1,3148.5,6.17611]
[1731771048712,0.55,3148.7,3148.1,3.1765]
[1731771048909,0.55,3148.7,3148.2,3.0]
[1731771049522,3.72597,3148.7,3148.1,3.0]
[1731771049913,3.17632,3148.3,3146.9,4.12270147]
[1731771050109,3.17643,3148.2,3147.5,3.17704]
[1731771050315,0.55,3148.1,3147.1,3.17752]
[1731771050570,0.55,3148.1,3146.7,3.17789]
[1731771050711,3.17738,3147.3,3146.7,3.17789]
[1731771050909,3.17757,3147.1,3146.5,3.58940015]
[1731771051363,0.55,3148.1,3146.5,3.58940015]
[1731771051657,0.55,3147.3,3146.6,0.35894002]
[1731771051955,0.55,3147.1,3146.6,0.35894002]
[1731771052184,0.55,3147.1,3146.4,3.17822]
[1731771052317,0.55,3147.1,3146.1,3.17847]
[1731771052520,3.72757,3147.1,3145.7,0.01]
[1731771052753,7.29906147,3148.3,3146.8,3.17775]
[1731771052754,0.55,3147.4,3146.8,3.17775]
[1731771053024,0.55,3147.6,3146.9,0.0635484]
[1731771053330,0.55,3147.6,3146.8,0.317775]
[1731771053661,0.55,3147.6,3146.8,3.17781]
[1731771053864,3.17722,3147.4,3146.8,3.17781]
[1731771054189,3.72761,3147.1,3146.4,3.0]
[1731771054524,3.1778,3146.9,3146.4,3.0]
[1731771055467,0.55,3146.8,3146.2,3.17842]
[1731771055811,3.1781,3146.6,3145.9,3.17872]
[1731771055942,3.1781,3146.6,3146.0,3.17862]